[Event "FIDE WY-U16 Olympiad 2022"]
[Site "Nakhchivan"]
[Date "2022.10.05"]
[Round "4.35"]
[White "Bashirli, Saadat"]
[Black "Han, Xuqian Ben"]
[Result "0-1"]
[ECO "E73"]
[WhiteElo "1508"]
[BlackElo "1610"]
[Annotator "NA RC COMBH"]
[PlyCount "196"]
[EventDate "2022.10.02"]
[EventType "team-tourn"]
[EventCountry "AZE"]
[SourceTitle "playchess.com"]
[Source "ChessBase"]
[SourceQuality "1"]
[WhiteTeam "Azerbaijan"]
[BlackTeam "Hong Kong"]
[WhiteTeamCountry "AZE"]
[BlackTeamCountry "HKG"]
[TimeControl "40/5400+30:1800+30"]

1. d4 {[%emt 0:00:03]} Nf6 {[%emt 0:00:04]} 2. c4 {[%emt 0:00:16]} g6 {[%emt 0:00:31]} 3. Nc3 {[%emt 0:00:08]} Bg7 {[%emt 0:00:21]} 4. e4 {[%emt 0:00:15]} d6 {[%emt 0:00:06]} 5. Be2 {[%emt 0:00:11]} O-O {[%emt 0:00:51]} 6. Bg5 {[%emt 0:00:13]} Nbd7 {[%emt 0:14:43]} 7. Qd2 {[%emt 0:00:24]} c5 {[%emt 0:01:45]} 8. d5 {[%emt 0:00:42]} Qa5 {[%emt 0:10:09]} 9. f3 {[%emt 0:02:01]} Nb6 {[%emt 0:03:40]} 10. g4 {[%emt 0:25:45]} Na4 {[%emt 0:05:38]} 11. Nxa4 {[%emt 0:01:37]} Qxa4 {[%emt 0:00:26]} 12. a3 {[%emt 0:03:07]} b5 {[%emt 0:16:51]} 13. cxb5 {[%emt 0:04:34]} Bd7 {[%emt 0:08:33]} 14. Bh6 {[%emt 0:04:09]} Bxb5 {[%emt 0:02:12]} 15. Bxg7 {[%emt 0:04:06]} Kxg7 {[%emt 0:00:05]} 16. h4 {[%emt 0:01:41]} Bxe2 {[%emt 0:02:37]} 17. Nxe2 {[%emt 0:00:35]} Qb3 {[%emt 0:00:41]} 18. Kf2 {[%emt 0:02:20]} Rab8 {[%emt 0:01:17]} 19. Rab1 {[%emt 0:01:15]} h5 {[%emt 0:01:12]} 20. gxh5 {[%emt 0:08:57]} Nxh5 {[%emt 0:00:50]} 21. Nc1 {[%emt 0:05:49]} Qb6 {[%emt 0:01:56]} 22. Qc3+ {[%emt 0:00:51]} Kh7 {[%emt 0:00:31]} 23. Qc4 {[%emt 0:01:41]} Qb5 {[%emt 0:00:51]} 24. Qc3 {[%emt 0:03:00]} a5 {[%emt 0:04:39]} 25. Ne2 {[%emt 0:03:28]} Qa4 {[%emt 0:01:43]} 26. Qd2 {[%emt 0:03:54]} Rb7 {[%emt 0:04:04]} 27. Rhg1 {[%emt 0:03:08]} Rfb8 {[%emt 0:03:14]} 28. Rg4 {[%emt 0:01:44]} Qc4 {[%emt 0:04:39]} 29. e5 {[%emt 0:02:22]} Qa2 {[%emt 0:01:23]} 30. Qc1 {[%emt 0:07:26]} Rxb2 {[%emt 0:00:22]} 31. Rxb2 {[%emt 0:00:24]} Rxb2 {[%emt 0:01:51]} 32. Re4 {[%emt 0:02:09]} Ng3 {[%emt 0:00:23]} 33. Kxg3 {[%emt 0:01:35]} Rxe2 {[%emt 0:00:06]} 34. Rxe2 {[%emt 0:00:50]} Qxe2 {[%emt 0:00:05]} 35. exd6 {[%emt 0:00:49]} Qe5+ {[%emt 0:02:09]} 36. f4 {[%emt 0:00:27]} Qxd6 {[%emt 0:00:16]} 37. Qc4 {[%emt 0:00:41]} Qc7 {[%emt 0:01:17]} 38. Kf3 {[%emt 0:02:30]} Kg7 {[%emt 0:00:20]} 39. Kg3 {[%emt 0:00:53]} f6 {[%emt 0:00:52]} 40. Kf3 {[%emt 0:00:33]} Qd6 {[%emt 0:01:22]} 41. Kg4 {[%emt 0:31:17]} Kh6 {[%emt 0:30:38]} 42. Kh3 {[%emt 0:01:13]} Kg7 {[%emt 0:01:01]} 43. Kg4 {[%emt 0:00:17]} Kf7 {[%emt 0:00:02]} 44. Kf3 {[%emt 0:00:36]} f5 {[%emt 0:02:04]} 45. Kg3 {[%emt 0:00:49]} Kf8 {[%emt 0:02:09]} 46. Kf3 {[%emt 0:00:24]} Qb6 {[%emt 0:00:04]} 47. Kg3 {[%emt 0:00:49]} Ke8 {[%emt 0:00:13]} 48. Kf3 {[%emt 0:00:52]} Kd7 {[%emt 0:00:09]} 49. Kg3 {[%emt 0:00:38]} Kd6 {[%emt 0:00:15]} 50. Kf3 {[%emt 0:00:25]} Qb7 {[%emt 0:00:20]} 51. Kg3 {[%emt 0:00:25]} Qb1 {[%emt 0:00:00]} 52. Qa6+ {[%emt 0:00:00]} Kxd5 {[%emt 0:00:00]} 53. Qxa5 {[%emt 0:00:00]} Qd3+ {[%emt 0:00:00]} 54. Kg2 {[%emt 0:00:00]} Qe2+ {[%emt 0:00:00]} 55. Kg1 {[%emt 0:00:00]} Qg4+ {[%emt 0:00:00]} 56. Kf1 {[%emt 0:00:00]} Qxf4+ {[%emt 0:00:00]} 57. Ke2 {[%emt 0:00:00]} Qh2+ {[%emt 0:00:00]} 58. Kd3 {[%emt 0:00:00]} Qg3+ {[%emt 0:00:00]} 59. Kd2 {[%emt 0:00:00]} Qf4+ {[%emt 0:00:00]} 60. Kc2 {[%emt 0:00:00]} Qh2+ {[%emt 0:00:00]} 61. Kd3 {[%emt 0:00:00]} Qd6 {[%emt 0:00:00]} 62. Qa8+ {[%emt 0:00:00]} Ke5+ {[%emt 0:00:00]} 63. Ke2 {[%emt 0:00:00]} c4 {[%emt 0:00:00]} 64. Qh8+ {[%emt 0:00:00]} Ke4 {[%emt 0:00:00]} 65. Qa8+ {[%emt 0:00:00]} Qd5 {[%emt 0:00:00]} 66. Qa4 {[%emt 0:00:00]} Qd3+ {[%emt 0:00:00]} 67. Kf2 {[%emt 0:00:00]} Qd2+ {[%emt 0:00:00]} 68. Kg1 {[%emt 0:00:00]} Qe3+ {[%emt 0:00:00]} 69. Kh2 {[%emt 0:00:00]} Qf2+ {[%emt 0:00:00]} 70. Kh3 {[%emt 0:00:00]} Qf1+ {[%emt 0:00:00]} 71. Kh2 {[%emt 0:00:00]} Kf4 {[%emt 0:00:00]} 72. Qc2 {[%emt 0:00:00]} Kg4 {[%emt 0:00:00]} 73. a4 {[%emt 0:00:00]} Qf4+ {[%emt 0:00:00]} 74. Kg1 {[%emt 0:00:00]} Qd4+ {[%emt 0:00:00]} 75. Kf1 {[%emt 0:00:00]} Qa1+ {[%emt 0:00:00]} 76. Kg2 {[%emt 0:00:00]} Qd4 {[%emt 0:00:00]} 77. Kf1 {[%emt 0:00:00]} c3 {[%emt 0:00:00]} 78. a5 {[%emt 0:00:00]} Qb4 {[%emt 0:00:00]} 79. a6 {[%emt 0:00:00]} Qa5 {[%emt 0:00:00]} 80. Qe2+ {[%emt 0:00:00]} Kf4 {[%emt 0:00:00]} 81. Qf2+ {[%emt 0:01:03]} Ke5 {[%emt 0:00:29]} 82. a7 {[%emt 0:02:13]} c2 {[%emt 0:01:13]} 83. Qxc2 {[%emt 0:02:10]} Qxa7 {[%emt 0:00:12]} 84. Qc3+ {[%emt 0:00:36]} Qd4 {[%emt 0:00:13]} 85. Qe1+ {[%emt 0:00:19]} Kf6 {[%emt 0:00:15]} 86. Qg3 {[%emt 0:00:20]} Qd1+ {[%emt 0:00:14]} 87. Kf2 {[%emt 0:00:16]} Qd2+ {[%emt 0:01:07]} 88. Kf1 {[%emt 0:00:17]} e5 {[%emt 0:00:11]} 89. Kg1 {[%emt 0:00:31]} Qd1+ {[%emt 0:00:10]} 90. Kf2 {[%emt 0:00:24]} Qg4 {[%emt 0:00:14]} 91. Qb3 {[%emt 0:00:27]} Qxh4+ {[%emt 0:00:06]} 92. Kg2 {[%emt 0:00:17]} Qe4+ {[%emt 0:00:04]} 93. Kf2 {[%emt 0:00:06]} f4 {[%emt 0:00:37]} 94. Qb6+ {[%emt 0:00:10]} Kf5 {[%emt 0:00:12]} 95. Qb8 {[%emt 0:00:17]} Qe3+ {[%emt 0:00:13]} 96. Kf1 {[%emt 0:00:01]} Kg4 {[%emt 0:00:28]} 97. Qc8+ {[%emt 0:00:22]} Kf3 {[%emt 0:00:45]} 98. Qc6+ {[%emt 0:00:15]} e4 0-1

[Event "FIDE WY-U16 Olympiad 2022"]
[Site "Nakhchivan"]
[Date "2022.10.06"]
[Round "5.1"]
[White "Kilic, Eray"]
[Black "Sapenov, Daniyal"]
[Result "1-0"]
[ECO "A18"]
[WhiteElo "2428"]
[BlackElo "2323"]
[Annotator "TA"]
[PlyCount "93"]
[EventDate "2022.10.02"]
[EventType "team-tourn"]
[EventCountry "AZE"]
[SourceTitle "playchess.com"]
[Source "ChessBase"]
[SourceQuality "1"]
[WhiteTeam "Turkey"]
[BlackTeam "Kazakhstan"]
[WhiteTeamCountry "TUR"]
[BlackTeamCountry "KAZ"]
[TimeControl "40/5400+30:1800+30"]

{[%evp 13,93,16,56,52,111,41,63,12,32,24,12,-30,-17,-31,0,0,0,0,0,0,0,0,0,-18,-9,-26,0,1,1,0,0,0,0,0,0,0,0,0,0,0,0,-12,0,-14,0,0,17,16,14,7,34,23,26,23,22,21,27,35,78,52,76,76,83,61,78,64,394,399,402,415,533,527,516,454,448,445,634,622,1750,3505,6141,6072]} 1. c4 {[%emt 0:00:03]} Nf6 {[%emt 0:02:43]} 2. Nc3 {[%emt 0:01:23]} e6 {[%emt 0:02:15]} 3. e4 {[%emt 0:00:11]} d5 {[%emt 0:04:41]} 4. e5 {[%emt 0:00:16]} d4 {[%emt 0:00:10]} 5. exf6 {[%emt 0:00:05]} dxc3 {[%emt 0:00:05]} 6. bxc3 {[%emt 0:00:16]} Qxf6 {[%emt 0:00:28]} 7. d4 {[%emt 0:01:36]} Bd6 {[%emt 0:24:09]} 8. Nf3 {[%emt 0:01:15] A18: English Opening: Flohr-Mikenas System (1 c4 Nf6 2 Nc3 e6 3 e4).} h6 {[%emt 0:01:34] Against Bg5} (8... c5 $14) 9. Bd3 {[%emt 0:02:09]} (9. c5 $16 Be7 10. Rb1) 9... Nd7 {[%emt 0:04:52]} 10. Qe2 {[%emt 0:02:23]} ({Better is} 10. O-O $14) 10... b6 $11 {[%emt 0:11:28]} 11. Be4 {[%emt 0:07:57]} Rb8 {[%emt 0:00:10] [#]} 12. h4 $146 {[%emt 0:09:52]} ({Predecessor:} 12. Rb1 c5 13. O-O O-O 14. Bc2 Bb7 15. Qd3 Rfd8 16. Nd2 Qh4 17. f4 Nf6 18. Qe2 Bxf4 {0-1 (47) Peschel,A (2150)-Schlamp,R (2255) Kassel 1996}) 12... Qe7 {[%emt 0:06:53]} 13. Rb1 {[%emt 0:10:44]} c5 {[%emt 0:03:47]} 14. Ne5 {[%emt 0:03:53] Threatens to win with Nc6.} Bxe5 {[%emt 0:03:59]} 15. dxe5 {[%emt 0:00:05]} Bb7 {[%emt 0:00:06]} 16. Bxb7 {[%emt 0:07:16]} Rxb7 {[%emt 0:00:04]} 17. Qe4 {[%emt 0:00:16]} Rb8 {[%emt 0:03:44]} 18. Bf4 {[%emt 0:07:56]} O-O {[%emt 0:01:27]} 19. Rd1 {[%emt 0:03:38]} Rbd8 {[%emt 0:05:19]} 20. Qb7 {[%emt 0:03:44]} f6 $1 {[%emt 0:02:06]} 21. O-O {[%emt 0:01:15]} Qf7 {[%emt 0:02:20]} ({Resist} 21... fxe5 22. Bg3 $16) 22. Qxa7 {[%emt 0:03:09]} Nxe5 {[%emt 0:00:58]} 23. Qxb6 {[%emt 0:01:49]} Nxc4 {[%emt 0:00:32]} 24. Qxc5 {[%emt 0:02:40]} e5 {[%emt 0:02:03]} 25. Bc1 {[%emt 0:05:06]} Ra8 {[%emt 0:01:02]} 26. Qc6 {[%emt 0:01:48]} Rfc8 {[%emt 0:01:49]} (26... Rxa2 $2 27. Rd7 Na5 28. Qd6 $18) 27. Qf3 {[%emt 0:01:15]} Qe6 {[%emt 0:03:23][%mdl 1024] Black has compensation.} ({Don't take} 27... Rxa2 28. Bxh6 Ra6 29. Qf5) 28. Qe2 {[%emt 0:08:55]} Ra7 {[%emt 0:02:22]} 29. Rd3 {[%emt 0:01:19]} f5 {[%emt 0:05:36]} 30. Rfd1 {[%emt 0:00:27]} Kh7 {[%emt 0:00:18]} 31. Rd5 {[%emt 0:01:52]} Qf7 {[%emt 0:01:29]} 32. Be3 {[%emt 0:01:43][%cal Bc1e3,Be3c5,Bc5b4][%mdl 32]} Rac7 {[%emt 0:00:15]} 33. a4 {[%emt 0:01:27]} Qf6 {[%emt 0:01:01]} 34. h5 {[%emt 0:01:19]} Ra8 {[%emt 0:01:49] Against a5} 35. Ra1 {[%emt 0:02:28]} Qe6 {[%emt 0:00:28]} 36. Rc5 $36 {[%emt 0:01:24][%mdl 2048] White has some pressure.} Rxc5 {[%emt 0:00:49]} 37. Bxc5 {[%emt 0:00:02]} Kh8 {[%emt 0:00:20]} 38. Qf3 {[%emt 0:01:54]} Rc8 {[%emt 0:00:27] [#] aiming for ...e4.} 39. Bb4 {[%emt 0:00:36]} (39. Rd1 $5) 39... f4 $2 {[%emt 0:01:02][%mdl 8192] Black cannot hold the game after this.} (39... e4 $14 40. Qf4 Ra8) 40. a5 $18 {[%emt 0:01:14]} Qa6 {[%emt 0:01:56]} 41. Qd5 {[%emt 0:31:02] Inhibits Nd2.} Nb2 {[%emt 0:23:36]} 42. Qxe5 {[%emt 0:00:00] White is clearly winning.} f3 {[%emt 0:00:58]} 43. Re1 {[%emt 0:00:00][%cal Ba1e1,Be1e3,Be3d3][%mdl 32]} Nd3 {[%emt 0:01:34]} 44. Qe6 {[%emt 0:00:00]} Qa8 {[%emt 0:00:38]} (44... Qxe6 $142 45. Rxe6 Nf4) 45. Re3 $1 {[%emt 0:00:00][%csl LRd3,LRf3]} fxg2 {[%emt 0:02:54]} 46. Rxd3 {[%emt 0:00:00]} Re8 {[%emt 0:01:04]} 47. Qd5 {[%emt 0:00:00] Weighted Error Value: White=0.11 (very precise) /Black=0.33} 1-0

[Event "FIDE WY-U16 Olympiad 2022"]
[Site "Nakhchivan"]
[Date "2022.10.06"]
[Round "5.1"]
[White "Francs, Marats"]
[Black "Montes Orozco, Miguel Angel"]
[Result "1/2-1/2"]
[ECO "D12"]
[WhiteElo "1976"]
[BlackElo "2051"]
[Annotator "TA"]
[PlyCount "124"]
[EventDate "2022.10.02"]
[EventType "team-tourn"]
[EventCountry "AZE"]
[SourceTitle "playchess.com"]
[Source "ChessBase"]
[SourceQuality "1"]
[WhiteTeam "Latvia"]
[BlackTeam "Mexico"]
[WhiteTeamCountry "LAT"]
[BlackTeamCountry "MEX"]
[TimeControl "40/5400+30:1800+30"]

{[%evp 13,124,34,50,32,31,-27,-27,-27,-9,-2,-8,-10,-6,-52,-7,-59,-56,-58,-11,-38,-37,-30,17,16,25,16,23,12,20,14,21,0,42,35,56,56,44,0,0,-72,-81,-70,-39,-58,-10,-37,-48,-51,0,0,0,0,0,-70,-41,-60,-70,-58,-35,-58,6,14,8,8,7,9,14,9,11,7,54,47,96,0,0,0,0,-8,0,-2,0,0,0,0,0,0,0,7,7,7,7,0,0,0,0,0,0,0,0,0,0,0,0,0,0,0,0,0,0,0,0,0,0]} 1. d4 {[%emt 0:00:03]} d5 {[%emt 0:00:08]} 2. c4 {[%emt 0:00:08]} c6 {[%emt 0:00:04]} 3. Nf3 {[%emt 0:00:15]} Nf6 {[%emt 0:00:30]} 4. e3 {[%emt 0:00:13]} Bf5 {[%emt 0:01:48]} 5. Nc3 {[%emt 0:00:15]} e6 {[%emt 0:00:17]} 6. Nh4 {[%emt 0:00:09]} Bg4 {[%emt 0:02:31]} 7. Qb3 {[%emt 0:02:23]} Qb6 {[%emt 0:03:33]} 8. Bd2 {[%emt 0:02:58] D12: Slav Defence: 3 Nf3 Nf6 4 e3 Bf5.} Be7 {[%emt 0:00:31]} 9. Nf3 {[%emt 0:01:20]} (9. h3 $14 Bh5 10. g4) 9... Nbd7 {[%emt 0:04:24] [#]} 10. Be2 $146 {[%emt 0:00:51] Black has an edge.} ({Predecessor:} 10. cxd5 Qxb3 11. axb3 exd5 12. Bd3 O-O 13. O-O a6 14. Rfc1 Ne8 15. Na4 Nd6 16. b4 {½-½ (16) Akots,G (2252)-Horvath,M (2205) Hungary 2019}) 10... Ne4 {[%emt 0:05:21]} 11. Nxe4 {[%emt 0:01:29]} dxe4 {[%emt 0:01:46]} 12. Ng1 {[%emt 0:01:05]} Bf5 {[%emt 0:00:06]} 13. h4 {[%emt 0:01:57]} (13. g4 $11 {should be considered.} Bg6 14. Nh3) 13... h6 {[%emt 0:00:50]} 14. Rd1 {[%emt 0:03:58]} (14. Qxb6 axb6 15. g4) (14. Qxb6 $11 axb6 15. g4) 14... Qc7 $15 {[%emt 0:01:58]} 15. h5 {[%emt 0:16:46]} O-O-O {[%emt 0:02:20]} (15... a5 $15 {might be stronger.}) 16. Qa4 {[%emt 0:03:05]} Kb8 {[%emt 0:02:17]} 17. c5 {[%emt 0:01:49]} Nf6 {[%emt 0:29:45] Against g4} (17... e5 $142) 18. Rc1 $11 {[%emt 0:14:04]} Nd5 {[%emt 0:06:01]} 19. Bc4 {[%emt 0:04:56]} Qd7 {[%emt 0:03:00][%cal Oe6e5]} 20. Ne2 {[%emt 0:02:57]} e5 {[%emt 0:01:34]} 21. b4 {[%emt 0:01:03] White wants to play b5.} Nc7 {[%emt 0:13:10] Prevents b5.} 22. Qc2 {[%emt 0:02:16]} Bf6 {[%emt 0:01:35][%cal Re5d4]} 23. Bc3 {[%emt 0:00:46]} Be6 {[%emt 0:00:55]} 24. Bxe6 {[%emt 0:02:12]} Qxe6 {[%emt 0:00:04]} (24... Nxe6 $2 25. dxe5 Be7 26. Ng3 $16 (26. Qxe4 Bxc5 27. O-O Bb6 $16)) 25. a4 {[%emt 0:02:36]} Nd5 {[%emt 0:02:13] Strongly threatening ...exd4.} 26. b5 {[%emt 0:04:03] [#]} (26. dxe5 $11 {remains equal.} Bxe5 27. Bxe5+ Qxe5 28. Qb3) 26... exd4 $1 $17 {[%emt 0:01:09]} 27. exd4 {[%emt 0:01:41]} Qd7 {[%emt 0:04:58]} 28. Ba5 {[%emt 0:00:57]} Rc8 {[%emt 0:00:34]} (28... cxb5 29. Bxd8 Rxd8 30. axb5 $14) (28... Rde8 $15) 29. O-O {[%emt 0:00:40]} e3 {[%emt 0:01:10]} ({Don't do} 29... cxb5 30. axb5 e3 31. c6 $14) 30. f3 {[%emt 0:01:14]} cxb5 {[%emt 0:00:04]} (30... Ka8 $15) 31. axb5 $11 {[%emt 0:00:18]} Qxb5 {[%emt 0:00:23]} 32. Qa2 {[%emt 0:00:16]} Qc6 {[%emt 0:00:55]} 33. Rb1 {[%emt 0:00:41]} ({White should play} 33. Ra1 $11) 33... Bh4 $1 $15 {[%emt 0:04:33]} 34. Be1 {[%emt 0:01:06]} Bxe1 {[%emt 0:00:12]} 35. Rfxe1 {[%emt 0:00:15]} Rhd8 {[%emt 0:04:52]} 36. Rb3 {[%emt 0:00:47]} Rd7 {[%emt 0:01:15]} (36... Ka8 $15) 37. Ra1 $11 {[%emt 0:00:22]} a6 {[%emt 0:00:27]} 38. Qxa6 $1 {[%emt 0:05:24]} Qxa6 {[%emt 0:00:05]} 39. Rxa6 {[%emt 0:00:05] Black should prevent c6.} Kc7 {[%emt 0:02:03] Against c6} 40. Ra1 {[%emt 0:00:46]} Rb8 {[%emt 0:00:30]} 41. Ng3 {[%emt 0:36:05]} Ne7 {[%emt 0:05:09] Prevents Nf5.} (41... b5 $11) 42. Rd1 $14 {[%emt 0:00:00]} Rbd8 {[%emt 0:02:09]} (42... Nd5 $14) 43. Rxe3 {[%emt 0:00:00]} (43. Rdb1 $16) 43... Nc6 $11 {[%emt 0:00:13] The position is equal.} 44. Rb1 {[%emt 0:00:00]} Nxd4 {[%emt 0:01:21]} 45. Kf2 {[%emt 0:00:00]} Ne6 {[%emt 0:02:41]} 46. Ne4 {[%emt 0:00:00] Against Rd2+} Rd5 {[%emt 0:03:45]} 47. g4 {[%emt 0:00:00]} Nxc5 {[%emt 0:07:12]} 48. Nxc5 {[%emt 0:00:00]} Rxc5 {[%emt 0:00:03][%mdl 4096] Endgame KRR-KRR} 49. Re7+ {[%emt 0:00:00]} Rd7 $1 {[%emt 0:00:02]} 50. Rxb7+ {[%emt 0:00:00]} Kxb7 {[%emt 0:00:02]} 51. Rxd7+ {[%emt 0:00:00]} Rc7 {[%emt 0:00:01]} 52. Rxc7+ {[%emt 0:00:00]} Kxc7 {[%emt 0:00:08] K3P-K3P} 53. Ke3 {[%emt 0:00:00]} Kd6 {[%emt 0:00:26]} 54. Kd4 {[%emt 0:00:00]} g5 {[%emt 0:03:12]} 55. Ke4 {[%emt 0:00:00]} Ke6 {[%emt 0:00:07]} 56. f4 {[%emt 0:00:00]} gxf4 {[%emt 0:02:08]} 57. Kxf4 {[%emt 0:00:00] KPP-KPP} Kf6 {[%emt 0:00:08]} 58. g5+ {[%emt 0:00:00]} hxg5+ {[%emt 0:00:07]} 59. Kg4 {[%emt 0:00:00]} Kg7 {[%emt 0:00:08] [#] ( -> ...Kh6)} 60. Kxg5 {[%emt 0:00:00]} Kh7 {[%emt 0:00:05]} 61. Kf6 {[%emt 0:00:00]} Kh6 {[%emt 0:00:05]} 62. Kxf7 {[%emt 0:00:00]} Kxh5 {[%emt 0:00:02] Weighted Error Value: White=0.16 (very precise) /Black=0.14 (very precise)} 1/2-1/2

[Event "FIDE WY-U16 Olympiad 2022"]
[Site "Nakhchivan"]
[Date "2022.10.06"]
[Round "5.2"]
[White "Kairbekova, Amina"]
[Black "Celik, Hasan Huseyin"]
[Result "0-1"]
[ECO "C10"]
[WhiteElo "2231"]
[BlackElo "2323"]
[Annotator "TA"]
[PlyCount "120"]
[EventDate "2022.10.02"]
[EventType "team-tourn"]
[EventCountry "AZE"]
[SourceTitle "playchess.com"]
[Source "ChessBase"]
[SourceQuality "1"]
[WhiteTeam "Kazakhstan"]
[BlackTeam "Turkey"]
[WhiteTeamCountry "KAZ"]
[BlackTeamCountry "TUR"]
[TimeControl "40/5400+30:1800+30"]

{[%evp 12,120,30,26,32,24,18,24,32,35,29,19,26,20,30,37,23,26,38,34,93,45,30,22,103,0,66,44,48,-8,0,-20,0,-90,0,-134,-123,-252,-248,-283,-181,-181,-182,-173,-188,-175,-181,-298,-289,-301,-249,-354,-337,-441,-380,-377,-364,-371,-368,-360,-349,-452,-450,-466,-458,-470,-441,-478,-478,-595,-582,-638,-625,-625,-568,-521,-533,-687,-648,-761,-747,-660,-598,-1026,-1012,-1037,-1055,-1036,-1003,-1026,-1020,-1124,-1105,-1616,-1305,-1385,-1260,-2124,-2061,-4906,-3354,-29974,-29975,-29977,-3616,-29974,-29977,-29977,-6358,-5737,-5338]} 1. e4 {[%emt 0:00:03]} e6 {[%emt 0:00:18]} 2. d4 {[%emt 0:00:15]} d5 {[%emt 0:00:06]} 3. Nc3 {[%emt 0:00:32]} dxe4 {[%emt 0:00:36]} 4. Nxe4 {[%emt 0:00:06]} Nd7 {[%emt 0:00:06]} 5. Nf3 {[%emt 0:00:18]} Ngf6 {[%emt 0:00:07]} 6. Nxf6+ {[%emt 0:00:18]} Nxf6 {[%emt 0:00:08]} 7. g3 {[%emt 0:01:14]} b6 {[%emt 0:00:45] C10: French with 3 Nc3: Unusual Black 3rd moves and 3...dxe4.} 8. Bb5+ {[%emt 0:00:10] 8.Bb5+ scores better than 8.Bg2.} Bd7 {[%emt 0:00:21]} 9. a4 {[%emt 0:01:21]} Bd6 {[%emt 0:03:58] White has an edge.} 10. O-O {[%emt 0:05:29] [#]} O-O $146 {[%emt 0:04:57]} ({Predecessor:} 10... a6 11. Be2 Bc6 12. Ne5 Bxe5 13. dxe5 Qxd1 14. Rxd1 Nd7 15. f4 a5 16. b3 O-O-O {½-½ (107) Peng,X (2485)-Lan,Z (2313) Shaoxing 2021}) 11. Ne5 {[%emt 0:06:10]} Bxb5 {[%emt 0:04:22]} 12. axb5 {[%emt 0:00:07]} Qc8 {[%emt 0:00:28]} 13. Qe2 {[%emt 0:10:06]} Bxe5 {[%emt 0:10:45]} 14. dxe5 {[%emt 0:00:45]} Nd5 {[%emt 0:02:29]} 15. Ra4 {[%emt 0:17:48]} Qe8 {[%emt 0:13:39]} (15... Ne7 $1 $14) 16. c4 {[%emt 0:05:39]} (16. Rh4 $16) 16... Ne7 $14 {[%emt 0:00:25]} 17. Bd2 {[%emt 0:07:41]} a5 {[%emt 0:04:45] [#]} (17... c6 $11 {keeps the balance.}) 18. c5 {[%emt 0:07:47]} ({Of course not} 18. b4 $6 axb4 19. Rxa8 Qxa8 $11) ({Only move:} 18. Rfa1 $1 $16) 18... Nd5 {[%emt 0:04:03]} ({Better is} 18... Rd8 $11) 19. Rc1 {[%emt 0:06:53]} Qe7 {[%emt 0:02:48]} 20. f4 {[%emt 0:05:46]} (20. Rh4 $14 g6 21. c6) 20... Rfd8 {[%emt 0:01:33]} 21. Be1 {[%emt 0:02:11]} Rab8 {[%emt 0:02:46][%cal Ba8b8,Bb8b5,Bb5b2][%mdl 32]} 22. g4 {[%emt 0:02:04]} (22. cxb6 $11 cxb6 23. Rc6) 22... Rf8 {[%emt 0:04:59]} (22... bxc5 $17 {[%cal Oc5c4]} 23. Bf2 c4 24. Qxc4 Nb6 25. Bxb6 cxb6) 23. Rac4 {[%emt 0:05:00]} (23. c6 $11) 23... bxc5 $17 {[%emt 0:03:52]} 24. Qf3 {[%emt 0:05:00] This costs White the game.} (24. Re4 $17) 24... Rxb5 $19 {[%emt 0:01:06]} 25. f5 {[%emt 0:00:07]} Qg5 {[%emt 0:02:52] Inhibits f6.} 26. h4 {[%emt 0:05:11]} Qe3+ {[%emt 0:00:18]} 27. Qxe3 {[%emt 0:00:05]} Nxe3 {[%emt 0:00:02]} 28. Re4 {[%emt 0:03:44]} Nd5 {[%emt 0:00:08]} 29. Bf2 {[%emt 0:00:14]} (29. Bc3 {keeps fighting.}) 29... Rxb2 {[%emt 0:00:34]} 30. Rxc5 {[%emt 0:00:22]} Rb4 {[%emt 0:00:36]} 31. Rd4 {[%emt 0:02:28]} (31. Rcc4 {was necessary.}) 31... Ra8 {[%emt 0:01:05]} 32. Rc6 {[%emt 0:00:22]} Rxd4 {[%emt 0:00:08]} 33. Bxd4 {[%emt 0:00:04]} exf5 {[%emt 0:00:08]} 34. gxf5 {[%emt 0:00:05][%mdl 4096] Endgame KRB-KRN} Ne7 {[%emt 0:00:03][%csl LRc6,LRf5]} 35. Rxc7 {[%emt 0:01:08]} Nxf5 {[%emt 0:00:02]} 36. Bc3 {[%emt 0:00:10]} a4 {[%emt 0:00:11][%cal Ba5a4,Ba4a3,Ba3a2][%mdl 32]} 37. h5 {[%emt 0:00:35]} a3 {[%emt 0:01:36] Prevents Bb2.} 38. Kf2 {[%emt 0:00:15]} a2 {[%emt 0:00:09]} 39. Ba1 {[%emt 0:00:30]} g6 {[%emt 0:00:29]} 40. h6 {[%emt 0:00:16]} Nxh6 {[%emt 0:00:56]} 41. e6 {[%emt 0:30:04]} fxe6 {[%emt 0:30:06]} 42. Rg7+ {[%emt 0:01:03]} Kf8 {[%emt 0:00:01] [#] ...Nf7 is the strong threat.} 43. Rxh7 {[%emt 0:00:07]} Nf7 {[%emt 0:00:01]} 44. Ke3 {[%emt 0:00:18]} e5 {[%emt 0:00:48]} 45. Rh2 {[%emt 0:00:44]} Ra4 {[%emt 0:00:24]} 46. Rc2 {[%emt 0:00:45]} Kg7 {[%emt 0:00:17]} 47. Rc7 {[%emt 0:00:05]} Kf6 {[%emt 0:00:10]} 48. Rc6+ {[%emt 0:00:35]} Kf5 {[%emt 0:00:10]} 49. Rc7 {[%emt 0:00:05]} Nh6 {[%emt 0:00:20]} 50. Kd3 {[%emt 0:00:23]} g5 {[%emt 0:00:23]} 51. Rh7 {[%emt 0:00:23]} Ng4 {[%emt 0:00:13]} 52. Rf7+ {[%emt 0:00:06]} Nf6 {[%emt 0:00:06] Hoping for ...g4.} 53. Re7 {[%emt 0:00:09]} e4+ {[%emt 0:00:16]} 54. Ke2 {[%emt 0:00:07]} Nh5 {[%emt 0:01:27] aiming for ...Kf4.} 55. Rf7+ {[%emt 0:02:20]} Kg4 {[%emt 0:00:09]} 56. Rf8 {[%emt 0:00:23]} Ng3+ {[%emt 0:00:10]} 57. Kf2 {[%emt 0:01:23]} Nf5 {[%emt 0:00:06]} (57... Ra3 $142 58. Kg2 Rd3 59. Be5 Rd2+ 60. Kg1 e3 61. Ra8 Ne2+ 62. Kf1 Nf4 63. Bxf4 gxf4 64. Ke1 a1=Q+ 65. Rxa1 f3 66. Kf1 Kg3 67. Rb1 f2 68. Re1 e2+ 69. Rxe2 Rd1+ 70. Re1 fxe1=Q#) 58. Re8 {[%emt 0:00:32]} Rc4 {[%emt 0:00:34]} 59. Ke2 {[%emt 0:00:36]} Rc1 {[%emt 0:00:10]} (59... Rc2+ $142 60. Kd1 Ne3+ 61. Ke1 Rc1+ 62. Ke2 Rxa1 63. Rxe4+ Kh5 64. Rxe3 Rh1 65. Ra3 a1=Q 66. Rxa1 Rxa1 67. Ke3 g4 68. Ke4 g3 69. Kf3 Ra3+ 70. Kf4 g2 71. Ke4 g1=Q 72. Kd5 Ra5+ 73. Kc4 Qc5+ 74. Kd3 Ra3+ 75. Ke2 Qc2+ 76. Kf1 Ra1#) 60. Rxe4+ {[%emt 0:00:07]} Kh5 {[%emt 0:00:01] Weighted Error Value: White=0.60/Black=0.19 (very precise)} 0-1